Cogmind - Beta 9.6 @@@ ROGUE MODE // 2020.09.02 @ 11:37:16 Player: Cracklepappy Result: Destroyed by H-55 Commando with Gauss Rifle Performance ------------- Evolutions (1) 500 Regions Visited (6) 1200 Robots Destroyed (82) 410 Value Destroyed (1572) 1572 Prototype IDs (9) 180 Alien Tech Used (0) 0 Bonus (85) 85 TOTAL SCORE: 3947 Bonus ------- Follower Combat Kills 85 Cogmind --------- Core Integrity 0/400 Matter 247/300 Energy 280/280 System Corruption 5% Temperature Cool (10) Movement Treading (245) Ox4 Location -8/Mines Parts ------- > --- POWER (1) -------- Heavy Ion Engine > --- PROPULSION (2) --- Light Treads Armored Treads > --- UTILITY (4) ------ Humpback Humpback > --- WEAPON (2) ------- Heavy Assault Rifle Advanced Assault Cannon > --- INVENTORY (44) --- Heavy Ion Engine Light Treads Armored Treads Armored Treads Combat Airjet Combat Airjet Improved Heat Sink Improved Heat Sink Medium Storage Unit Large Storage Unit Large Storage Unit Large Storage Unit High-capacity Storage Unit Humpback High-capacity Matter Pod (200) High-capacity Matter Pod (174) Signal Interpreter Improved Terrain Scanner Improved Terrain Scan Processor Improved Targeting Computer Light Armor Plating Lightning Gun Heavy Laser Improved EM Pulse Cannon Shotgun Mini Grenade Launcher Katana Signal Generator Peak State ------------ > --- POWER ------------ Heavy Ion Engine > --- PROPULSION ------- Armored Treads Armored Treads > --- UTILITY ---------- Improved Heat Sink Large Storage Unit Large Storage Unit Salvage Targeting Computer > --- WEAPON ----------- Heavy EM Pulse Gun Heavy EM Pulse Gun > --- INVENTORY -------- Heavy Ion Engine Armored Treads Armored Treads Improved Heat Sink Medium Storage Unit Medium Storage Unit High-capacity Matter Pod Signal Interpreter Improved Terrain Scanner Improved Terrain Scan Processor Improved Targeting Computer Light Armor Plating Small Laser Shotgun Mini Grenade Launcher Mining Laser [Rating: 23] Favorites ----------- Power Heavy Ion Engine Engine Heavy Ion Engine Power Core Light Nuclear Core Propulsion Light Treads Treads Light Treads Wheel Compact Wheel Utility Large Storage Unit Device Heat Sink Storage Large Storage Unit Processor Salvage Targeting Computer Protection Light Armor Plating Weapon Heavy Assault Rifle Energy Gun EM Shotgun Ballistic Gun Heavy Assault Rifle Ballistic Cannon Advanced Assault Cannon Launcher Mini Grenade Launcher Special Weapon Mining Laser Build | -11 -10 -10 -9 -9 -9 -8 ------- Run | Scr Mat Min Mat Min Exi Min Slots Evolved 2 | . . . 2 . . . Power . | . . . . . . . Propulsion . | . . . . . . . Utility 2 | . . . 2 . . . Weapon . | . . . . . . . Parts Attached 55 | 7 13 . 25 5 3 2 Power 5 | 1 2 . 2 . . . Engine 4 | 1 1 . 2 . . . Core 1 | . 1 . . . . . Reactor . | . . . . . . . Propulsion 10 | 2 . . 7 1 . . Treads 8 | . . . 7 1 . . Leg . | . . . . . . . Wheel 2 | 2 . . . . . . Hover . | . . . . . . . Flight . | . . . . . . . Utility 18 | 2 4 . 8 1 3 . Device 3 | . . . 3 . . . Storage 12 | 2 4 . 3 . 3 . Processor 1 | . . . 1 . . . Hackware . | . . . . . . . Protection 2 | . . . 1 1 . . Artifact . | . . . . . . . Weapon 22 | 2 7 . 8 3 . 2 Energy Gun 5 | 1 . . 4 . . . Energy Cannon . | . . . . . . . Ballistic Gun 8 | 1 3 . 3 1 . . Ballistic Cannon 5 | . 3 . . 1 . 1 Launcher 2 | . . . . 1 . 1 Special Weapon 2 | . 1 . 1 . . . Impact Weapon . | . . . . . . . Slashing Weapon . | . . . . . . . Piercing Weapon . | . . . . . . . Special Melee Weapon . | . . . . . . . Unidentified Prototypes 1 | . . . 1 . . . Parts Lost 6 | . . . 5 1 . . Power 1 | . . . 1 . . . Propulsion 1 | . . . 1 . . . Utility 1 | . . . . 1 . . Weapon 3 | . . . 3 . . . Highest Loss Streak 3 | . . . 3 1 . . Average Slot Usage (%) 96 | . 99 100 97 100 87 77 Engine 11 | . 9 14 10 11 11 11 Treads 15 | . . . 21 22 22 22 Wheel 7 | . 28 28 . . . . Device 1 | . . . 4 . . . Storage 27 | . 28 28 25 33 26 22 Processor 4 | . . . 10 2 . . Protection 3 | . . . 2 8 5 . Energy Gun 5 | . . . 14 . . . Ballistic Gun 12 | . 11 28 6 15 11 11 Ballistic Cannon 4 | . 14 . . 5 11 6 Naked Turns . | . . . . . . . Heaviest Build 178 | 13 25 25 54 61 178 178 Greatest Support 40 | 32 32 32 40 40 40 40 Greatest Overweight (x) 4 | . . . 2 1 4 4 Average Overweight (x) . | . . . . 1 2 4 Largest Inventory Capacity 44 | 8 12 12 20 20 44 44 Average Capacity 18 | 7 8 12 15 20 33 44 Most Carried 29 | 8 12 12 20 20 29 29 Average Carried 16 | 4 8 11 15 19 23 29 Final Capacity 44 | 8 12 12 20 20 44 44 Final Carried 29 | 8 12 12 20 20 29 29 Class Distribution -------------------- 52% | Mutant 45% | Hauler-Mutant Dominant Class ---------------- Mutant | -10/Materials Mutant | -10/Mines Mutant | -9/Materials Hauler-Mutant | -9/Mines Hauler-Mutant | -9/Exiles Hauler-Mutant | -8/Mines Resources | -11 -10 -10 -9 -9 -9 -8 ----------- Run | Scr Mat Min Mat Min Exi Min Matter Collected 1455 | 289 288 165 273 313 62 65 Remotely . | . . . . . . . Salvage Created 2587 | 179 474 43 1499 359 . 33 Parts 159 | 10 33 2 97 10 . 7 Haulers Intercepted 1 | . . . 1 . . . Recyclers Shooed 2 | . . 1 . 1 . . Parts Field Recycled . | . . . . . . . Retrieved Matter . | . . . . . . . Parts Self-Destructed . | . . . . . . . Prevented . | . . . . . . . Kills | -11 -10 -10 -9 -9 -9 -8 ------- Run | Scr Mat Min Mat Min Exi Min Combat Hostiles Destroyed 58 | . 13 1 24 16 . 4 Guns 35 | . 4 1 22 6 . 2 Cannons 9 | . 9 . . . . . AOE 13 | . . . 1 10 . 2 Classes Destroyed 12 | 3 3 . 4 2 . . Worker 6 | 2 . . 2 2 . . Builder 2 | . . . . 2 . . Tunneler 3 | 3 . . . . . . Hauler 1 | . . . 1 . . . Recycler 5 | 1 . . 2 2 . . Operator 1 | . . . 1 . . . Watcher 6 | . 3 . 3 . . . Swarmer 10 | . 3 . 3 . . 4 Grunt 23 | . 10 1 12 . . . Duelist 1 | . . . 1 . . . Sentry 8 | . . . 8 . . . Assembled 16 | . . . . 16 . . Best Kill Streak 9 | 3 5 1 6 9 . 4 Combat Bots Only 6 | . 5 1 5 6 . 4 Max Kills in Single Turn 3 | 1 1 1 2 3 . 3 Gunslinging . | . . . . . . . Exploded 3 | . . . 1 3 . 2 Melee . | . . . . . . . Uniques/NPCs Destroyed . | . . . . . . . Combat | -11 -10 -10 -9 -9 -9 -8 -------- Run | Scr Mat Min Mat Min Exi Min Damage Taken 2295 | . 279 48 1223 639 . 106 Core 465 | . 41 15 272 105 . 32 Absorbed by Shields . | . . . . . . . Core Remaining (%) 88 | 100 . 77 . . . . Volleys Fired 190 | 19 57 6 71 31 . 6 Largest 2 | 2 2 2 2 2 . 2 Hottest 100 | 60 100 40 100 71 . 71 Shots Fired 371 | 38 108 12 139 63 . 11 Gun 284 | 38 39 12 138 51 . 6 Cannon 70 | . 63 . . 3 . 4 Launcher 10 | . . . . 9 . 1 Special 7 | . 6 . 1 . . . Kinetic 209 | 19 102 12 12 54 . 10 Thermal 26 | 19 6 . 1 . . . Explosive 10 | . . . . 9 . 1 Electromagnetic 126 | . . . 126 . . . Robot Hit Streak 42 | 6 6 8 42 8 . 3 Robot Miss Streak 6 | 4 6 1 4 4 . 2 Penetration Max . | . . . . . . . Secondary Targets 3 | . . . 2 1 . . Max Gunslinging Chain 1 | . . . 1 1 . . Shots Hit Robots 231 | 22 50 10 109 35 . 5 Core Hits 140 | 11 26 3 57 39 . 4 Critical Hits 5 | . 4 . . 1 . . Critical Kills 3 | . 2 . . 1 . . Critical Parts Destroyed 2 | . 2 . . . . . Melee Attacks . | . . . . . . . Impact . | . . . . . . . Slashing . | . . . . . . . Piercing . | . . . . . . . Sneak Attacks . | . . . . . . . Combat Hostiles . | . . . . . . . Follow-up Attacks . | . . . . . . . Damage Inflicted 4259 | 233 645 129 1701 1303 . 248 Guns 2735 | 233 215 122 1629 479 . 57 Cannons 453 | . 430 . . . . 23 Explosions 1022 | . . . 72 809 . 141 Melee . | . . . . . . . Ramming 49 | . . 7 . 15 . 27 Kinetic 1592 | 111 645 122 155 479 . 80 Thermal 194 | 122 . . 72 . . . Explosive 950 | . . . . 809 . 141 Electromagnetic 1474 | . . . 1474 . . . Impact . | . . . . . . . Slashing . | . . . . . . . Piercing . | . . . . . . . Highest Corruption 5 | . . 1 1 5 5 5 Average Corruption 3 | . . 1 1 3 5 5 Corruption Purged . | . . . . . . . Effects 49 | . . 2 2 19 16 10 Message Errors 13 | . . . . 7 3 3 Matter Fused 9 | . . . . 2 4 3 Heat Flow Errors 6 | . . . . 2 3 1 Energy Discharges 9 | . . 2 1 1 3 2 Data Loss (minor) 7 | . . . 1 3 2 1 Data Loss (major) 3 | . . . . 2 1 . Misfires 1 | . . . . 1 . . Targeting Errors 1 | . . . . 1 . . Overload Shots . | . . . . . . . Overflow Damage 53 | . 8 . 7 38 . . Projectiles 8 | . 8 . . . . . Explosions 45 | . . . 7 38 . . Melee . | . . . . . . . Knockbacks 6 | . 4 . . . . 2 Impact 1 | . . . . . . 1 Kinetic 5 | . 4 . . . . 1 Secondary . | . . . . . . . Self-Inflicted Damage 121 | . . 3 20 98 . . Shots 4 | . . . 1 3 . . Rammed 5 | . . 2 . 1 . 2 Targets Rammed 5 | . . 2 . 1 . 2 Kicked . | . . . . . . . Crushed . | . . . . . . . Highest Temperature 265 | 40 120 2 174 240 265 178 Average Temperature 39 | 22 26 2 38 50 115 47 Received Heat Transfer 852 | . 87 27 486 252 . . Effects 1 | . . . . . 1 . Interference 1 | . . . . . 1 . Siege Activations . | . . . . . . . Robots Corrupted 2 | . . . 2 . . . Combat Hostiles 1 | . . . 1 . . . Parts Fried 12 | . . . 12 . . . Impact Corruptions . | . . . . . . . Robots Melted . | . . . . . . . Combat Hostiles . | . . . . . . . Parts Melted . | . . . . . . . Heat Transferred 375 | 275 . . 100 . . . Parts Sabotaged . | . . . . . . . Parts Stolen . | . . . . . . . Parts Stripped . | . . . . . . . Power Chain Reactions 2 | . . . 2 . . . Missiles Intercepted . | . . . . . . . Alert | -11 -10 -10 -9 -9 -9 -8 ------- Run | Scr Mat Min Mat Min Exi Min Peak Influence 313 | 30 313 137 231 34 . 100 Average Influence 99 | 11 196 71 129 9 . 46 Maximum Alert Level 1 | . 1 . 1 . . . Low Security (%) 82 | 100 47 100 79 100 . 100 Level 1 17 | . 52 . 20 . . . Level 2 . | . . . . . . . Level 3 . | . . . . . . . Level 4 . | . . . . . . . Level 5 . | . . . . . . . High Security . | . . . . . . . Max Security . | . . . . . . . Squads Dispatched 8 | . 2 . 5 1 . . Investigation 2 | . 1 . . 1 . . Extermination . | . . . . . . . Reinforcement 6 | . 1 . 5 . . . Assault . | . . . . . . . Garrison . | . . . . . . . Intercept . | . . . . . . . Construction Impeded . | . . . . . . . Haulers Reinforced . | . . . . . . . Stealth | -11 -10 -10 -9 -9 -9 -8 --------- Run | Scr Mat Min Mat Min Exi Min Distress Signals 3 | . 1 . 2 . . . Communications Jammed . | . . . . . . . Distress Signals . | . . . . . . . Times Spotted 87 | . 21 5 35 21 . 5 Peak Tracking Total 14 | . 4 3 4 14 . 4 Tactical Retreats 5 | . 1 . 2 2 . . Traps | -11 -10 -10 -9 -9 -9 -8 ------- Run | Scr Mat Min Mat Min Exi Min Traps Triggered 2 | . 1 . 1 . . . Indirectly . | . . . . . . . Trap Hack Attempts . | . . . . . . . Triggered . | . . . . . . . Disarmed . | . . . . . . . Reprogrammed . | . . . . . . . Reused . | . . . . . . . Traps Extracted . | . . . . . . . Installed . | . . . . . . . Triggered 1 | . . . 1 . . . Machines | -11 -10 -10 -9 -9 -9 -8 ---------- Run | Scr Mat Min Mat Min Exi Min Machines Disabled 5 | . 2 2 1 . . . Max in Single Turn 1 | . 1 . 1 . . . Machines Sabotaged . | . . . . . . . Garrisons Compromised . | . . . . . . . Overloaded Fab Kills . | . . . . . . . Fab Network Shutdowns . | . . . . . . . Hacking | -11 -10 -10 -9 -9 -9 -8 --------- Run | Scr Mat Min Mat Min Exi Min Machines Accessed 16 | . 7 1 5 2 1 . Terminals 13 | . 7 1 5 . . . Fabricators . | . . . . . . . Repair Stations . | . . . . . . . Recycling Units . | . . . . . . . Scanalyzers . | . . . . . . . Garrison Access . | . . . . . . . Total Hacks 63 | . 21 1 16 2 23 . Successful 38 | . 7 . 6 2 23 . Failed 25 | . 14 1 10 . . . Catastrophic 4 | . 2 . 2 . . . Database Lockouts . | . . . . . . . Manual 13 | . 6 1 6 . . . Terminals 38 | . 21 1 16 . . . Fabricators . | . . . . . . . Repair Stations . | . . . . . . . Recycling Units . | . . . . . . . Scanalyzers . | . . . . . . . Garrison Access . | . . . . . . . Terminal Hacks 38 | . 7 . 6 2 23 . Record 23 | . . . . . 23 . Part Schematic 1 | . 1 . . . . . Prototype ID Bank 5 | . 3 . 2 . . . Open Door 2 | . . . . 2 . . Terminal Index 1 | . 1 . . . . . Unreport Threat 3 | . . . 3 . . . Locate Traps 1 | . . . 1 . . . Zone Layout 2 | . 2 . . . . . Fabricator Hacks . | . . . . . . . Repair Station Hacks . | . . . . . . . Recycling Unit Hacks . | . . . . . . . Scanalyzer . | . . . . . . . Garrison Access Hacks . | . . . . . . . Unauthorized Hacks . | . . . . . . . Terminals . | . . . . . . . Fabricators . | . . . . . . . Repair Stations . | . . . . . . . Recycling Units . | . . . . . . . Scanalyzers . | . . . . . . . Garrison Access . | . . . . . . . Data Cores Recovered . | . . . . . . . Used . | . . . . . . . Hacking Detections 13 | . 7 1 5 . . . Full Trace Events . | . . . . . . . Feedback Events . | . . . . . . . Feedback Blocked . | . . . . . . . Robot Schematics Acquired . | . . . . . . . Robots Built . | . . . . . . . Matter . | . . . . . . . Time . | . . . . . . . Total Robot Build Rating . | . . . . . . . Part Schematics Acquired 1 | . 1 . . . . . Parts Built . | . . . . . . . Matter . | . . . . . . . Time . | . . . . . . . Total Part Build Rating . | . . . . . . . Parts Repaired . | . . . . . . . Time . | . . . . . . . Parts Recycled . | . . . . . . . Recycled Matter . | . . . . . . . Retrieved Matter . | . . . . . . . Retrieved Components . | . . . . . . . Parts Scanalyzed . | . . . . . . . Part Schematics Acquired . | . . . . . . . Parts Damaged . | . . . . . . . Bothacking | -11 -10 -10 -9 -9 -9 -8 ------------ Run | Scr Mat Min Mat Min Exi Min Used RIF Installer . | . . . . . . . Robots Hacked . | . . . . . . . Non-combat . | . . . . . . . Combat . | . . . . . . . Robot Hacks Applied . | . . . . . . . Relay Couplers Released . | . . . . . . . Robots Rewired . | . . . . . . . Allies Hacked . | . . . . . . . Hacks Repelled . | . . . . . . . Allies | -11 -10 -10 -9 -9 -9 -8 -------- Run | Scr Mat Min Mat Min Exi Min Total Allies 5 | . . 5 . . . . Largest Group 3 | . . 3 1 . . . Highest-Rated Group 46 | . . 46 31 . . . Highest-Rated Ally 31 | . . 31 31 . . . Total Orders . | . . . . . . . Ally Attacks 35 | . . 24 11 . . . Total Damage 477 | . . 247 230 . . . Kills 6 | . . 3 3 . . . Allies Corrupted . | . . . . . . . Allies Melted . | . . . . . . . Intel | -11 -10 -10 -9 -9 -9 -8 ------- Run | Scr Mat Min Mat Min Exi Min Robot Analysis Total . | . . . . . . . Derelict Logs Recovered 4 | . . 2 . 2 . . Drone Launches . | . . . . . . . Drone Recoveries . | . . . . . . . Exploration | -11 -10 -10 -9 -9 -9 -8 ------------- Run | Scr Mat Min Mat Min Exi Min Turns Passed 5580 | 164 852 591 2005 1078 585 305 Spaces Moved 3038 | 91 612 534 921 506 259 115 Core 1 | 1 . . . . . . Treads 1789 | . . . 909 506 259 115 Legs . | . . . . . . . Wheels 1248 | 90 612 534 12 . . . Hover . | . . . . . . . Flight . | . . . . . . . Fastest Speed 50 | 50 100 100 100 185 185 245 Average Speed 152 | 99 100 100 175 185 217 245 Slowest Speed 245 | 100 100 100 210 190 245 245 Overloaded Moves . | . . . . . . . Propulsion Burnouts . | . . . . . . . Robots Hopped . | . . . . . . . Cave-ins Triggered . | . . . . . . . Exploration Rate (%) 65 | 5 98 88 88 94 54 31 Regions Visited 6 Branch Regions 4 Pre-discovered Areas 2 | . . 1 . . 1 . Known Exits Taken . | . . . . . . . Unknown Exits Taken 6 | 1 1 1 1 1 1 . Scrap Searched 5 | . . 3 . 1 . 1 Spaces Dug 6 | . 5 . 1 . . . Terrain Destroyed 104 | . 5 . 10 79 . 10 Melee . | . . . . . . . Projectile 11 | . 5 . 1 3 . 2 AOE 93 | . . . 9 76 . 8 Actions | -11 -10 -10 -9 -9 -9 -8 --------- Run | Scr Mat Min Mat Min Exi Min Total 3617 | 128 743 579 1175 583 284 125 Wait 203 | . 35 36 105 27 . . Move 3032 | 90 611 533 920 505 258 115 Hop . | . . . . . . . Pick Up 76 | 11 10 1 29 7 18 . Fast Attach 20 | 5 6 . 6 1 2 . Attach 7 | 2 . . 4 1 . . Detach . | . . . . . . . Swap 28 | . 7 . 15 3 1 2 Drop 56 | 1 17 1 25 7 5 . Fire 190 | 19 57 6 71 31 . 6 Melee . | . . . . . . . Ram 2 | . . 2 . . . . Kick . | . . . . . . . Crush 3 | . . . . 1 . 2 Escape Stasis . | . . . . . . . Rewire . | . . . . . . . Trap . | . . . . . . . Miscellaneous . | . . . . . . . Route ------- -11/Scrapyard -10/Materials (discovered 5 exits: *Mat x3 / *Min x2) -10/Mines (discovered 2 exits: *Mat x2) -9/Materials (discovered 4 exits: [*Mat x3] / *Min) -9/Mines (discovered 3 exits: [*Mat x2] / *Exi) -9/Exiles -8/Mines History --------- Turn | Location | Event 31 | -11/Scrapyard | Discovered new exit (range 15) 165 | -11/Scrapyard | Entered Materials 165 | -10/Materials | Discovered new exit (range 14) 294 | -10/Materials | Discovered new exit (range 9) 304 | -10/Materials | Build established: Mutant 409 | -10/Materials | Discovered new exit (range 5) 658 | -10/Materials | Discovered new exit (range 6) 831 | -10/Materials | Discovered new exit (range 10) 1017 | -10/Materials | Entered Mines 1024 | -10/Mines | Received a Rocket Launcher from a helpful Derelict 1045 | -10/Mines | Assisted by bots powering up and referring to "LRC-V3" 1240 | -10/Mines | Discovered new exit (range 6) 1295 | -10/Mines | Discovered new exit (range 8) 1608 | -10/Mines | Entered Materials 1608 | -9/Materials | Accompanied by 1 ally 1608 | -9/Materials | Evolved 2 slots: Utility x2 1617 | -9/Materials | Led the pair of lost Derelicts to an unsafe place 2070 | -9/Materials | Discovered new exit (range 12) 2600 | -9/Materials | Lost 3 parts (1n2w) 2757 | -9/Materials | Discovered new exit (range 16) 2919 | -9/Materials | Core integrity fell below 50% 3214 | -9/Materials | Discovered new exit (range 15) 3348 | -9/Materials | Build established: Hauler-Mutant 3402 | -9/Materials | Discovered new exit (range 15) 3613 | -9/Materials | Entered Mines 3641 | -9/Mines | Assembled infested the area 3709 | -9/Mines | Core integrity fell below 20% 3746 | -9/Mines | Discovered new exit (range 14) 3784 | -9/Mines | Learned Materials stockpile data 3966 | -9/Mines | Met a Derelict who couldn't figure out how to use a Trap Extractor 4070 | -9/Mines | Learned location of 1 exit from Materials 4077 | -9/Mines | Met a Derelict testing a Signal Generator 4083 | -9/Mines | Found Signal Generator 4158 | -9/Mines | Met a Derelict shopkeep closing up shop 4476 | -9/Mines | Discovered new exit (range 8) 4650 | -9/Mines | Deemed a non-threat by the Exiles lab entrance 4650 | -9/Mines | Discovered new exit (range 5) 4691 | -9/Mines | Entered Exiles 4736 | -9/Exiles | Met 8R-AWN 4764 | -9/Exiles | Met EX-HEX 4878 | -9/Exiles | Met EX-DEC 5174 | -9/Exiles | Learned location of Zion (-6) 5254 | -9/Exiles | Discovered new exit (range 11) 5276 | -9/Exiles | Entered Mines 5581 | -8/Mines | Destroyed by H-55 Commando with Gauss Rifle Last Messages --------------- 05458_ R-06 Scavenger collects Lgt. Ion Engine. 05464_ Acquired 6 matter. 05467_ Acquired 10 matter. 05481_ System corrupted: Component data lost. 05494_ Searching scrap... 05494_ Found 49 Matter. 05494_ Found Imp. Terrain Scanner. 05494_ Found Maneuvering Thrusters. 05494_ Found Imp. Power Shielding. 05494_ Found Melee Analysis Suite. 05495_ Acquired 49 matter. 05496_ System corrupted: Matter fused (-7). 05552_ VSA7MKKUEV2WVJVZFL3 LTW,S 05560_ K-01 Serf collects debris. 05563_ Slug penetrates Wall. 05570_ Penetrated by Slug. 05571_ H-55 Commando knocked back. 05573_ Slug penetrates Wall. 05574_ System corrupted: Energy discharge (-81). 05581_ Penetrated by Slug. Map ----- +----------------------------------------------------+ | ??### #??????????????????????? | | ????## #??????????????????????? | | ?????## ##?????????????????????? | | ??????## #?????????????????????? | | ???????### #?????????????????????? | | ??????##### ##????????????????????? | | ??????# ###??????????????????? | | ??????# #?????????????????? | | ??????# ### #?????????????????? | | ??????#!!#?? #?????????????????? | | ??????# !#?? #####?????????????????? | | ??????#! ##? #?????????????????????? | | ??????# ## #?????????????????????? | | ??????# #####?????????????????? | | ??????# """" #?????????????????? | | ??????# """" ## #?????????????????? | | ??????# """" ##????????????????????? | | ??????# ##?????????????????????? | | ??????# ###??????????????????????? | | ?????## ##????????????????????????? | | ????## ##?????????????????????????? | | ????# ##??????????????????????????? | | ????# ##???????????????????????????? | | ???## ##?????????#???? ?????????? | | ??## ######;## ## #??????? | | ??# @ h k#?????????????? | | ??# u ;#????????????? | | ??# ###########????????????? | | ??# ##????????????????????? | | ??## ## #????????????????????? | | ???###### #????????????????????? | | ????????# ##????????????????????? | | ????????# ###?????????????????????? | | ????????# ##???????????????????????? | | ????????####????????????????????????? | | ????????????????????????????????????? | | ????????????????????????????????????? | | ????????????????????????????????????? | | ????????????????????????????????????? | | ????????????????????????????????????? | | ????????????????????????????????????? | | ????????????????????????????????????? | | ????????????????????????????????????? | | ????????????????????????????????????? | | ????????????????????????????????????? | | ????????????????????????????????????? | | ????????????????????????????????????? | | ????????????????????????????????????? | | ????????????????????????????????????? | | ????????????????????????????????????? | +----------------------------------------------------+ Best States ------------- Heat Dissipation 42 Energy Generation 14 Energy Capacity 280 Matter Stores 300 Matter Capacity 300 Sight Range 16 Terrain Scan Density 10 Armor Coverage 150 Evasion (%) 40 Recoil Reduction 2 Salvage Targeting 1 Item Schematics ----------------- Hcp. Storage Unit | -10/Materials | Hacked Robot Schematics ------------------ None Fabricated ------------ Nothing Alien Tech Used ----------------- None Achievements -------------- None Challenges ------------ None Game ------ Seed ImprinterPoweredRouter Manual? 0 Play Time 00:36:02 Cumulative 171.8 hours Start 2020.09.02 @ 10:11:06 End 2020.09.02 @ 11:37:16 Sessions 1 Manual Loads 0 Difficulty Rogue Special Mode None Game No. 199 Rogue 199 Adventurer 0 Explorer 0 Win Type - Total 2 Types 2/0/0/0/0/0/0 Lore% 62 Gallery% 73 Achievement% 54 Wizard Run 0 Options --------- ASCII 0 Keyboard 0 Movement Numpad Keybinds 0 Fullscreen 2 Font 24/Smallcaps Map View 76x50 Tactical HUD 1 Map Filters NONE Filters NONE Steam 1 RUN: 04cea9c3-d933-4179-89e5-fb14aae165e8